bitfinex-derivatives/quotes_SOLF0:USTF0_20250523
["timestamp","ask_amount","ask_price","bid_price","bid_amount"]
[1748029377742,113.06,179.86,179.84,5.5595]
[1748029377948,113.06,179.86,179.76,5.89970366]
[1748029377949,113.06,179.86,179.83,0.03610166]
[1748029378153,0.03895598,179.86,179.83,0.03755129]
[1748029378344,113.06,179.92,179.83,0.03755129]
[1748029378545,113.06,179.92,179.84,5.04398629]
[1748029379556,13.86246852,179.93,179.84,5.04398629]
[1748029379744,13.86246852,179.93,179.87,0.04147746]
[1748029380146,13.86246852,179.93,179.87,113.08147746]
[1748029380349,19.41926852,179.93,179.89,5.5577]
[1748029380551,13.86246852,179.93,179.87,113.08147746]
[1748029380750,113.04,179.97,179.87,113.08147746]
[1748029381157,5.5561,179.95,179.91,5.5572]
[1748029381359,5.5561,179.95,179.91,5.5961457]
[1748029382359,5.5558,179.96,179.92,5.5569]
[1748029382858,5.5558,179.96,179.91,5.5962457]
[1748029383155,5.5558,179.96,179.91,0.0389457]
[1748029383354,113.04,179.97,179.91,0.0389457]
[1748029383962,5.557,179.92,179.91,0.0389457]
[1748029389058,113.04,179.97,179.91,0.0389457]
[1748029389265,5.89970366,180.0,179.91,0.0389457]
[1748029389456,112.98,179.99,179.91,0.0389457]
[1748029389657,5.5564,179.95,179.91,0.0389457]
[1748029390163,112.98,179.99,179.91,0.0389457]
[1748029390765,112.98,179.99,179.91,5.5961457]
[1748029391064,112.98,179.99,179.91,0.0389457]
[1748029391364,5.5563,179.95,179.91,5.5962457]
[1748029391664,112.98,179.99,179.91,0.0389457]
[1748029391860,5.557,179.92,179.91,0.0389457]
[1748029394668,5.557,179.92,179.91,4.57e-05]
[1748029395059,5.557,179.92,179.83,109.5798]
[1748029395060,0.03514633,179.93,179.83,1.9514]
[1748029395266,5.89970366,179.91,179.83,1.9514]
[1748029395566,112.98,179.9,179.83,1.9514]
[1748029395865,5.89970366,179.88,179.78,3.989]
[1748029396166,5.89970366,179.85,179.74,1.8657]
[1748029396366,112.98,179.84,179.74,1.8657]
[1748029396661,5.89970366,179.82,179.73,112.98]
[1748029397055,5.59815539,179.79,179.76,0.03790857]
[1748029397254,0.03685539,179.79,179.76,0.03790857]
[1748029397669,5.5614,179.78,179.76,0.03790857]
[1748029397965,0.03685539,179.79,179.76,0.03790857]
[1748029398976,5.59795539,179.79,179.76,0.03790857]
[1748029399470,0.03685539,179.79,179.76,0.03790857]
[1748029400064,5.5617,179.77,179.76,0.03790857]
[1748029403466,0.03685539,179.79,179.76,0.03790857]
[1748029404369,0.03685539,179.79,179.78,5.5614]
[1748029404966,0.03685539,179.79,179.76,0.03790857]
[1748029405972,0.03685539,179.79,179.77,5.5614]
[1748029406474,0.03685539,179.79,179.78,5.5614]
[1748029407666,112.94,179.84,179.78,5.56]
[1748029407868,112.94,179.88,179.77,114.8865]
[1748029408068,5.5591,179.86,179.77,114.8865]
[1748029408676,0.03745966,179.83,179.8,0.04049678]
[1748029409366,400.32,179.91,179.8,0.04049678]
[1748029409571,112.94,179.9,179.77,120.78620366]
[1748029410068,5.5588,179.87,179.84,5.5595]
[1748029410470,112.94,179.9,179.84,0.04227278]
[1748029411175,5.559,179.86,179.84,0.04227278]
[1748029411373,5.89970366,179.89,179.84,0.04227278]
[1748029411578,7.80380366,179.89,179.84,0.04227278]
[1748029411778,5.5592,179.85,179.84,0.04227278]
[1748029412076,118.4992,179.85,179.84,0.04227278]
[1748029426187,118.4992,179.85,179.84,7.278e-05]
[1748029426390,124.39970366,179.85,179.71,5.13907083]
[1748029426580,5.89970366,179.82,179.71,5.13907083]
[1748029426888,5.89970366,179.79,179.67,3.7976]
[1748029427085,5.89970366,179.79,179.66,5.13907083]
[1748029427287,0.03680718,179.74,179.71,0.03628602]
[1748029427483,5.5632,179.72,179.71,0.03628602]
[1748029428090,5.563,179.73,179.71,0.03628602]
[1748029428285,112.97680718,179.74,179.71,0.03628602]
[1748029429483,118.53960718,179.74,179.71,0.03628602]
[1748029429678,112.97680718,179.74,179.71,0.03628602]
[1748029430191,5.5632,179.72,179.71,0.03628602]
[1748029430376,112.97680718,179.74,179.71,0.03628602]
[1748029431290,5.5629,179.73,179.71,0.03628602]
[1748029431680,112.97680718,179.74,179.71,0.03628602]
[1748029432089,5.5629,179.73,179.71,0.03628602]
[1748029434693,5.5632,179.72,179.71,0.03628602]
[1748029440600,5.5629,179.73,179.71,0.03628602]
[1748029441003,112.97680718,179.74,179.71,0.03628602]
[1748029441201,5.5632,179.72,179.71,0.03628602]
[1748029441702,5.5632,179.72,179.71,8.602e-05]
[1748029451205,0.03680718,179.74,179.71,8.602e-05]
[1748029452009,0.03680718,179.74,179.72,5.5632]
[1748029452205,0.03680718,179.74,179.71,8.602e-05]
[1748029452600,400.52,179.8,179.71,8.602e-05]
[1748029452807,513.48,179.8,179.71,3.66108602]
[1748029453211,5.5615,179.78,179.75,5.5621]
[1748029453710,5.60034919,179.78,179.75,5.60487068]
[1748029453910,0.03884919,179.78,179.75,0.04277068]
[1748029454716,0.03884919,179.78,179.75,5.60507068]
[1748029455617,5.60024919,179.78,179.75,5.60507068]
[1748029455814,5.60024919,179.78,179.75,0.04277068]
[1748029456219,5.5619,179.77,179.75,0.04277068]
[1748029457615,5.60024919,179.78,179.75,0.04277068]
[1748029458417,0.03884919,179.78,179.75,0.04277068]
[1748029458818,5.60044919,179.78,179.75,0.04277068]
[1748029459319,0.03884919,179.78,179.77,5.5617]
[1748029460023,5.5599,179.83,179.8,5.5606]
[1748029460821,5.5599,179.83,179.8,5.60122637]
[1748029461019,112.9,179.84,179.81,5.5602]
[1748029461216,112.9,179.84,179.8,0.04062637]
[1748029461616,5.5604,179.81,179.8,0.04062637]
[1748029462023,5.5602,179.82,179.8,0.04062637]
[1748029462222,112.9,179.84,179.8,0.04062637]
[1748029462822,5.5604,179.81,179.8,0.04062637]
[1748029470429,5.5604,179.81,179.8,2.637e-05]
[1748029470728,5.5622,179.76,179.72,1.8426]
[1748029470932,5.5622,179.76,179.72,7.4058]
[1748029471536,5.600425,179.76,179.72,7.44550657]
[1748029472327,0.038225,179.76,179.72,0.03970657]
[1748029472936,5.5623,179.75,179.72,0.03970657]
[1748029476037,5.5628,179.74,179.72,0.03970657]
[1748029476237,112.918225,179.76,179.72,0.03970657]
[1748029476535,5.5629,179.73,179.72,0.03970657]
[1748029476935,112.918225,179.76,179.72,0.03970657]
[1748029477137,5.5629,179.74,179.72,0.03970657]
[1748029480840,5.5629,179.73,179.72,0.03970657]
[1748029482740,5.5627,179.74,179.72,0.03970657]
[1748029485444,5.5629,179.73,179.72,0.03970657]
[1748029489246,5.5627,179.74,179.72,0.03970657]
[1748029490140,5.5629,179.73,179.72,0.03970657]
[1748029493743,112.9,179.75,179.72,0.03970657]
[1748029494451,112.9,179.75,179.74,5.5626]
[1748029496646,0.038225,179.76,179.75,5.5623]
[1748029500442,0.038225,179.76,179.72,0.03970657]
[1748029500752,112.878225,179.76,179.72,0.03970657]
[1748029501554,5.5629,179.73,179.72,0.03970657]
[1748029501854,112.878225,179.76,179.72,0.03970657]
[1748029503054,5.5629,179.73,179.72,0.03970657]
[1748029511961,5.5629,179.73,179.72,6.57e-06]
[1748029519669,0.038225,179.76,179.72,6.57e-06]
[1748029521169,5.600325,179.76,179.73,5.5627]
[1748029522370,0.038225,179.76,179.72,6.57e-06]
[1748029524058,5.5629,179.73,179.72,6.57e-06]
[1748029524264,118.3629,179.73,179.72,6.57e-06]
[1748029524765,118.69044609,179.73,179.63,5.13907083]
[1748029525177,5.89044609,179.7,179.63,5.13907083]
[1748029525473,112.8,179.69,179.63,5.13907083]
[1748029525673,0.03914287,179.68,179.64,0.03897838]
[1748029525875,5.60364287,179.68,179.64,0.03897838]
[1748029526175,0.03914287,179.68,179.64,0.03897838]
[1748029526673,5.5651,179.67,179.64,0.03897838]
[1748029527175,5.5651,179.66,179.64,0.03897838]
[1748029527377,0.03914287,179.68,179.64,0.03897838]
[1748029528069,5.565,179.67,179.64,0.03897838]
[1748029528270,0.03914287,179.68,179.64,0.03897838]
[1748029528477,5.5648,179.67,179.64,0.03897838]
[1748029528977,0.03914287,179.68,179.64,5.60457838]
[1748029529173,0.03914287,179.68,179.64,0.03897838]
[1748029531079,5.5654,179.65,179.64,0.03897838]
[1748029531476,112.82,179.66,179.64,0.03897838]
[1748029533482,5.5654,179.65,179.64,7.838e-05]
[1748029536587,0.03914287,179.68,179.64,7.838e-05]
[1748029536588,5.5652,179.66,179.64,7.838e-05]
[1748029537383,0.03914287,179.68,179.64,7.838e-05]
[1748029537885,112.84,179.75,179.68,5.5643]
[1748029538090,112.84,179.75,179.65,1.9479]
[1748029538387,5.5632,179.72,179.65,1.9479]
[1748029538790,0.03895975,179.7,179.67,0.03821966]
[1748029538989,0.03895975,179.7,179.68,5.5643]
[1748029539594,0.03895975,179.7,179.69,5.5642]
[1748029540092,0.03895975,179.7,179.67,0.03821966]
[1748029540796,5.60285975,179.7,179.67,5.60281966]
[1748029541094,0.03895975,179.7,179.67,0.03821966]
[1748029542095,0.03895975,179.7,179.69,5.5642]
[1748029542393,0.03895975,179.7,179.67,0.03821966]
[1748029542794,0.03895975,179.7,179.68,5.5644]
[1748029543497,0.03895975,179.7,179.67,5.60291966]
[1748029543790,0.03895975,179.7,179.67,0.03821966]
[1748029543990,112.87895975,179.7,179.67,0.03821966]
[1748029545592,5.5645,179.68,179.67,0.03821966]
[1748029551605,5.5667,179.61,179.57,5.13907083]
[1748029551799,112.82,179.64,179.57,5.13907083]
[1748029551995,112.82,179.64,179.58,5.5674]
[1748029552205,5.5666,179.62,179.57,5.13907083]
[1748029552505,112.82,179.64,179.57,5.13907083]
[1748029552712,0.03768971,179.62,179.59,0.03517482]
[1748029552900,5.567,179.6,179.59,0.03517482]
[1748029553498,118.387,179.6,179.59,0.03517482]
[1748029556697,118.387,179.6,179.51,112.82]
[1748029556698,112.82,179.6,179.49,5.13907083]
[1748029556901,5.5694,179.53,179.49,5.13907083]
[1748029557111,112.84,179.56,179.5,5.5698]
[1748029557808,0.03707814,179.55,179.51,0.0374111]
[1748029558406,5.60567814,179.55,179.51,5.6071111]
[1748029558606,0.03707814,179.55,179.51,0.0374111]
[1748029559205,5.5691,179.54,179.51,0.0374111]
[1748029559612,0.03707814,179.55,179.51,0.0374111]
[1748029560909,5.569,179.54,179.51,0.0374111]
[1748029561608,5.60567814,179.55,179.51,0.0374111]
[1748029562104,0.03707814,179.55,179.51,5.6070111]
[1748029562308,0.03707814,179.55,179.51,0.0374111]
[1748029563105,112.88,179.6,179.56,5.568]
[1748029563413,112.88,179.6,179.52,109.5195]
[1748029563709,112.88,179.6,179.58,5.5675]
[1748029563911,400.88,179.64,179.54,5.89044609]
[1748029564111,0.039868,179.61,179.57,0.04167382]
[1748029565809,0.039868,179.61,179.6,5.5669]
[1748029567910,0.039868,179.61,179.57,0.04167382]
[1748029571622,5.567,179.6,179.57,5.60957382]
[1748029572520,5.606768,179.61,179.58,5.5675]
[1748029572725,0.039868,179.61,179.57,0.04167382]
[1748029573023,0.039868,179.61,179.57,161.04167382]
[1748029573323,0.039868,179.61,179.6,5.5669]
[1748029574224,0.039868,179.61,179.57,161.04167382]
[1748029574928,0.039868,179.61,179.59,5.5671]
[1748029575534,0.039868,179.61,179.6,5.5669]
[1748029577329,0.039868,179.61,179.58,5.5672]
[1748029577526,0.039868,179.61,179.57,161.04167382]
[1748029578529,0.039868,179.61,179.57,5.60927382]
[1748029578828,0.039868,179.61,179.57,0.04167382]
[1748029579130,0.039868,179.61,179.6,5.5669]
[1748029580332,0.039868,179.61,179.59,5.5671]
[1748029580532,0.039868,179.61,179.57,0.04167382]
[1748029580828,0.039868,179.61,179.57,5.60927382]
[1748029581133,0.039868,179.61,179.57,0.04167382]
[1748029581732,0.039868,179.61,179.58,5.5673]
[1748029582336,0.039868,179.61,179.57,0.04167382]
[1748029582927,0.039868,179.61,179.6,5.5669]
[1748029583231,112.86,179.66,179.58,112.86]
[1748029583430,112.86,179.66,179.58,273.86]
[1748029583733,112.86,179.66,179.59,5.14043443]
[1748029583932,118.4253,179.66,179.63,5.5659]
[1748029584125,118.4613693,179.66,179.63,5.6038178]
[1748029584321,118.4613693,179.66,179.63,0.0379178]
[1748029584525,112.8960693,179.66,179.64,5.5657]
[1748029584725,112.8960693,179.66,179.63,0.0379178]
[1748029585734,118.4613693,179.66,179.63,5.6036178]
[1748029586126,112.8960693,179.66,179.63,0.0379178]
[1748029586327,5.5654,179.65,179.63,0.0379178]
[1748029586933,5.5657,179.64,179.63,0.0379178]
[1748029587233,112.8960693,179.66,179.63,0.0379178]
[1748029588422,5.5656,179.65,179.63,0.0379178]
[1748029589333,5.5657,179.64,179.63,0.0379178]
[1748029589936,5.5655,179.65,179.63,0.0379178]
[1748029590735,112.8960693,179.66,179.63,0.0379178]
[1748029591240,5.5655,179.65,179.63,0.0379178]
[1748029593239,5.5655,179.65,179.63,5.6038178]
[1748029593738,5.5655,179.65,179.63,0.0379178]
[1748029594135,112.8960693,179.66,179.63,0.0379178]
[1748029594335,0.0360693,179.66,179.65,5.5654]
[1748029594740,109.6655,179.76,179.7,5.5636]
[1748029594741,3.8655,179.76,179.7,5.5636]
[1748029594941,112.84,179.76,179.67,112.84]
[1748029595128,5.5624,179.75,179.67,112.84]
[1748029595334,5.5624,179.75,179.68,3.8823]
[1748029595638,5.5624,179.75,179.71,5.5632]
[1748029595838,5.5624,179.75,179.71,5.60217465]
[1748029595839,5.60491265,179.75,179.71,5.60217465]
[1748029596042,5.5626,179.74,179.71,5.60217465]
[1748029596242,0.04251265,179.75,179.71,5.60217465]
[1748029596435,0.04251265,179.75,179.72,5.563]
[1748029597045,0.04251265,179.75,179.71,5.60237465]
[1748029597342,5.5626,179.74,179.71,5.60237465]
[1748029597545,0.04251265,179.75,179.71,5.60237465]
[1748029598036,5.60501265,179.75,179.71,5.60237465]
[1748029599143,5.5626,179.74,179.71,5.60237465]
[1748029599440,0.04251265,179.75,179.71,0.03897465]
[1748029599841,5.5626,179.74,179.71,0.03897465]
[1748029601145,5.5629,179.73,179.71,0.03897465]
[1748029601344,0.04251265,179.75,179.71,0.03897465]
[1748029601645,5.5632,179.72,179.71,0.03897465]
[1748029602238,118.3632,179.72,179.71,0.03897465]
[1748029607154,118.3632,179.72,179.71,7.465e-05]
[1748029607752,118.36,179.72,179.6,513.68]
[1748029607953,112.8,179.72,179.6,619.44]
[1748029608148,5.5652,179.66,179.6,218.56]
[1748029608348,5.5652,179.66,179.63,5.5659]
[1748029608746,5.60566297,179.66,179.63,5.60479444]
[1748029609561,5.60566297,179.66,179.63,0.03889444]
[1748029610262,5.5654,179.65,179.63,0.03889444]
[1748029611162,5.5657,179.64,179.63,0.03889444]
[1748029612459,5.5654,179.65,179.63,0.03889444]
[1748029612857,0.04046297,179.66,179.63,0.03889444]
[1748029613665,0.04046297,179.66,179.64,5.5654]
[1748029614165,0.04046297,179.66,179.63,161.03889444]
[1748029615463,5.5656,179.65,179.63,161.03889444]
[1748029615763,0.04046297,179.66,179.63,161.03889444]
[1748029616067,5.5655,179.65,179.63,161.03889444]
[1748029616465,0.04046297,179.66,179.63,161.03889444]
[1748029617065,5.5657,179.64,179.63,0.03889444]
[1748029620868,5.5657,179.64,179.56,118.4134]
[1748029620869,112.8,179.64,179.56,112.8]
[1748029621179,112.8,179.64,179.55,5.5682]
[1748029621378,112.8,179.64,179.52,225.47141579]
[1748029621670,5.5674,179.59,179.56,5.568]
[1748029622067,5.60508123,179.59,179.56,5.60725332]
[1748029622268,5.60508123,179.59,179.56,0.03925332]
[1748029622269,0.03768123,179.59,179.56,0.03925332]
[1748029622463,112.85768123,179.59,179.56,0.03925332]
[1748029622859,5.5678,179.57,179.56,0.03925332]
[1748029625075,112.85768123,179.59,179.48,112.82]
[1748029625266,112.82,179.59,179.48,112.82]
[1748029625466,112.82,179.59,179.5,5.5698]
[1748029625669,5.569,179.54,179.5,5.5698]
[1748029625870,112.82,179.59,179.51,5.5696]
[1748029626066,0.03559778,179.57,179.53,0.04099545]
[1748029626470,0.03559778,179.57,179.56,5.5681]
[1748029631980,112.84,179.66,179.56,273.84]
[1748029632174,112.84,179.66,179.56,112.84]
[1748029632479,5.5648,179.67,179.64,5.5654]
[1748029632673,112.84,179.7,179.6,218.64]
[1748029632981,5.60553032,179.67,179.63,0.03907846]
[1748029633173,0.04083032,179.67,179.65,5.5653]
[1748029633477,0.04083032,179.67,179.63,0.03907846]
[1748029633680,0.04083032,179.67,179.64,5.5655]
[1748029634276,0.04083032,179.67,179.63,0.03907846]
[1748029634678,0.04083032,179.67,179.65,5.5651]
[1748029634979,0.04083032,179.67,179.63,0.03907846]
[1748029635170,0.04083032,179.67,179.65,5.5652]
[1748029635773,5.60563032,179.67,179.64,5.5655]
[1748029635976,0.04083032,179.67,179.63,0.03907846]
[1748029637384,5.5651,179.66,179.63,0.03907846]
[1748029637979,0.04083032,179.67,179.63,0.03907846]
[1748029638483,5.5657,179.64,179.63,0.03907846]
[1748029639682,118.71044609,179.66,179.56,385.188]
[1748029639872,118.71044609,179.66,179.56,218.62]
[1748029640076,5.5668,179.61,179.56,218.62]
[1748029640376,5.5668,179.61,179.57,5.5676]
[1748029640578,5.60712378,179.61,179.57,5.60947611]
[1748029641085,5.5669,179.6,179.57,5.60947611]
[1748029641283,0.04032378,179.61,179.57,0.04187611]
[1748029641678,5.5671,179.6,179.57,5.60967611]
[1748029641879,5.5671,179.6,179.57,0.04187611]
[1748029643786,5.5675,179.58,179.57,0.04187611]
[1748029646076,112.86032378,179.61,179.57,0.04187611]
[1748029646077,5.5672,179.59,179.57,0.04187611]
[1748029646480,0.04032378,179.61,179.57,0.04187611]
[1748029647086,0.04032378,179.61,179.59,5.567]
[1748029647289,0.04032378,179.61,179.57,0.04187611]
[1748029647586,0.04032378,179.61,179.6,5.5669]
[1748029649485,5.60692378,179.61,179.58,5.5672]
[1748029649683,0.04032378,179.61,179.57,161.04187611]
[1748029650393,5.5671,179.6,179.57,166.60957611]
[1748029650589,0.04032378,179.61,179.57,0.04187611]
[1748029650889,5.5675,179.58,179.57,0.04187611]
[1748029651085,122.48514609,179.6,179.51,5.13907083]
[1748029651284,5.5694,179.52,179.51,5.13907083]
[1748029651784,112.82,179.56,179.51,5.13907083]
[1748029651984,5.5691,179.53,179.51,5.13907083]
[1748029652184,5.5691,179.53,179.52,0.04230157]
[1748029652497,0.03783899,179.55,179.52,0.04230157]
[1748029653791,112.84,179.6,179.52,161.04230157]
[1748029654090,5.5675,179.59,179.55,5.5683]
[1748029654295,112.84,179.6,179.52,161.0]
[1748029654697,0.0355826,179.58,179.54,5.60946348]
[1748029655197,5.6032826,179.58,179.54,5.60946348]
[1748029655398,5.6032826,179.58,179.55,5.5683]
[1748029655894,5.568,179.57,179.54,0.04086348]
[1748029656194,0.0355826,179.58,179.54,0.04086348]
[1748029656593,5.568,179.57,179.54,0.04086348]
[1748029656897,0.0355826,179.58,179.54,0.04086348]
[1748029657196,5.5684,179.55,179.54,0.04086348]
[1748029660300,0.0355826,179.58,179.54,0.04086348]
[1748029661401,5.5683,179.56,179.54,0.04086348]
[1748029661594,0.0355826,179.58,179.54,0.04086348]
[1748029662793,5.5684,179.55,179.54,0.04086348]
[1748029662995,112.86,179.55,179.45,166.13907083]
[1748029663192,112.86,179.55,179.45,5.13907083]
[1748029663699,5.5696,179.52,179.45,5.13907083]
[1748029663896,0.03934418,179.5,179.49,5.5701]
[1748029664102,0.03719538,179.51,179.47,0.03633658]
[1748029664896,5.5702,179.5,179.47,0.03633658]
[1748029665092,0.03719538,179.51,179.47,0.03633658]
[1748029665999,0.03719538,179.51,179.48,5.5704]
[1748029667002,0.03719538,179.51,179.49,5.5702]
[1748029667301,0.03719538,179.51,179.47,0.03633658]
[1748029667601,0.03719538,179.51,179.49,5.5702]
[1748029670505,5.60689538,179.51,179.48,5.5706]
[1748029670710,5.60689538,179.51,179.47,0.03633658]
[1748029671106,5.60689538,179.51,179.48,5.5705]
[1748029671605,5.60689538,179.51,179.47,0.03633658]
[1748029672005,0.03719538,179.51,179.47,0.03633658]
[1748029672610,5.60709538,179.51,179.47,0.03633658]
[1748029673410,5.60709538,179.51,179.49,5.5703]
[1748029673600,5.57,179.5,179.47,0.03633658]
[1748029673909,0.03719538,179.51,179.48,5.5706]
[1748029674208,5.60699538,179.51,179.48,5.5706]
[1748029674607,5.60699538,179.51,179.49,5.5703]
[1748029675408,5.60699538,179.51,179.5,5.57]
[1748029675409,0.03719538,179.51,179.5,5.57]
[1748029676009,0.03719538,179.51,179.47,161.03633658]
[1748029676709,5.60699538,179.51,179.47,161.03633658]
[1748029677704,5.60699538,179.51,179.48,5.5703]
[1748029678605,5.60699538,179.51,179.47,166.60713658]
[1748029678606,5.57,179.5,179.47,166.60713658]
[1748029678807,0.03719538,179.51,179.47,0.03633658]
[1748029679611,5.60699538,179.51,179.48,5.5706]
[1748029680211,0.03719538,179.51,179.49,5.5703]
[1748029680403,0.03719538,179.51,179.47,0.03633658]
[1748029680903,0.03719538,179.51,179.5,5.57]
[1748029682304,0.03719538,179.51,179.49,5.5702]
[1748029682507,0.03719538,179.51,179.47,161.03633658]
[1748029683406,7.87370373,179.62,179.47,161.03633658]
[1748029683607,112.88,179.61,179.48,218.74]
[1748029683807,5.5678,179.57,179.48,218.74]
[1748029684008,5.5678,179.57,179.48,384.84869216]
[1748029684208,5.5678,179.57,179.55,5.5684]
[1748029684408,0.04220758,179.58,179.54,0.0368759]
[1748029684615,0.0407824,179.58,179.54,0.0368759]
[1748029685719,0.0407824,179.58,179.55,5.5682]
[1748029685921,0.0407824,179.58,179.54,0.0368759]
[1748029686619,0.0407824,179.58,179.55,5.5684]
[1748029686620,5.6083824,179.58,179.55,5.5684]
[1748029687121,5.568,179.57,179.54,5.6054759]
[1748029687420,0.0407824,179.58,179.54,5.6054759]
[1748029687721,5.5679,179.57,179.54,5.6054759]
[1748029688125,5.5684,179.55,179.54,0.0368759]
[1748029688519,112.86,179.57,179.48,112.88]
[1748029688520,126.49590373,179.57,179.48,5.5705]
[1748029688721,5.5697,179.51,179.48,5.5705]
[1748029689228,5.5695,179.52,179.49,5.5703]
[1748029689525,0.04045381,179.52,179.49,0.03588115]
[1748029689727,5.5677,179.58,179.51,5.5697]
[1748029689925,112.86,179.61,179.51,161.0]
[1748029690127,112.86,179.61,179.52,1.892]
[1748029690319,112.86,179.61,179.52,162.892]
[1748029690517,112.86,179.61,179.53,1.8744]
[1748029690829,0.03606531,179.59,179.55,0.03997336]
[1748029692031,0.03606531,179.59,179.58,5.5671]
[1748029697732,0.03606531,179.59,179.57,5.5676]
[1748029698134,0.03606531,179.59,179.55,0.03997336]
[1748029699327,0.03606531,179.59,179.58,5.5674]
[1748029701229,0.03606531,179.59,179.57,5.5676]
[1748029701728,0.03606531,179.59,179.55,0.03997336]
[1748029702635,0.03606531,179.59,179.58,5.5674]
[1748029708042,0.03606531,179.59,179.55,0.03997336]
[1748029708643,0.03606531,179.59,179.57,5.5676]
[1748029709242,5.60326531,179.59,179.56,5.5679]
[1748029710445,5.60326531,179.59,179.57,5.5677]
[1748029711542,5.60326531,179.59,179.56,5.5679]
[1748029713544,0.03606531,179.59,179.57,5.5676]
[1748029713845,0.03606531,179.59,179.55,0.03997336]
[1748029714245,0.03606531,179.59,179.55,5.60827336]
[1748029714645,5.5676,179.58,179.56,5.568]
[1748029715642,5.60326531,179.59,179.56,5.568]
[1748029716045,0.03606531,179.59,179.56,5.568]
[1748029717346,5.5676,179.58,179.55,5.60817336]
[1748029718043,5.5677,179.57,179.55,0.03997336]
[1748029718549,5.5675,179.58,179.55,5.60807336]
[1748029719349,5.5675,179.58,179.56,5.568]
[1748029719840,5.568,179.57,179.55,0.03997336]
[1748029720034,0.03606531,179.59,179.55,0.03997336]
[1748029720546,5.5676,179.58,179.55,5.60827336]
[1748029721545,5.5677,179.57,179.55,5.60827336]
[1748029722046,5.568,179.56,179.55,0.03997336]
[1748029722643,5.5696,179.51,179.5,5.11431064]
[1748029723548,113.14,179.54,179.46,111.3909]
[1748029723748,0.04210212,179.52,179.48,0.03745633]
[1748029725148,5.5702,179.49,179.48,0.03745633]
[1748029725749,5.5699,179.5,179.48,0.03745633]
[1748029726948,5.5702,179.49,179.48,0.03745633]
[1748029728144,5.5714,179.45,179.44,5.09876798]
[1748029730240,5.61323245,179.46,179.43,0.04104735]
[1748029730857,0.04203245,179.46,179.44,105.86]
[1748029731660,0.04203245,179.46,179.43,161.04104735]
[1748029731947,0.04203245,179.46,179.45,5.5714]
[1748029737658,0.04203245,179.46,179.44,5.5717]
[1748029738258,5.61313245,179.46,179.43,5.61294735]
[1748029738456,0.04203245,179.46,179.43,0.04104735]
[1748029739857,5.61333245,179.46,179.43,5.61294735]
[1748029740058,0.04203245,179.46,179.43,0.04104735]
[1748029741157,5.5716,179.45,179.43,0.04104735]
[1748029741563,0.04203245,179.46,179.43,0.04104735]
[1748029741751,5.61333245,179.46,179.43,0.04104735]
[1748029742562,5.61333245,179.46,179.43,5.61304735]
[1748029745667,5.61333245,179.46,179.44,5.5717]
[1748029746663,0.04203245,179.46,179.45,5.5714]
[1748029747561,0.04203245,179.46,179.44,5.5716]
[1748029748665,0.04203245,179.46,179.45,5.5714]
[1748029748863,0.04203245,179.46,179.43,0.04104735]
[1748029750168,5.61333245,179.46,179.43,5.61304735]
[1748029750365,0.04203245,179.46,179.43,0.04104735]
[1748029750871,5.61323245,179.46,179.43,5.61284735]
[1748029751370,5.5716,179.45,179.43,0.04104735]
[1748029751556,0.04203245,179.46,179.43,0.04104735]
[1748029751872,5.61343245,179.46,179.43,0.04104735]
[1748029752170,0.04203245,179.46,179.43,0.04104735]
[1748029752371,5.5715,179.45,179.43,0.04104735]
[1748029752964,5.61343245,179.46,179.43,5.61304735]
[1748029753165,0.04203245,179.46,179.43,0.04104735]
[1748029753470,112.94203245,179.46,179.43,0.04104735]
[1748029753672,5.5717,179.44,179.43,0.04104735]
[1748029756064,13.36890537,179.44,179.33,166.13907083]
[1748029756371,3.7514,179.43,179.33,5.13907083]
[1748029756566,112.9,179.42,179.33,5.13907083]
[1748029756767,5.5738,179.38,179.35,5.5745]
[1748029757164,5.6124427,179.38,179.35,5.6145901]
[1748029757769,5.574,179.37,179.35,0.0400901]
[1748029757970,0.0386427,179.38,179.35,0.0400901]
[1748029760066,112.9786427,179.38,179.35,0.0400901]
[1748029760369,5.5742,179.37,179.35,0.0400901]
[1748029760577,112.9786427,179.38,179.35,0.0400901]
[1748029761270,5.5742,179.36,179.35,0.0400901]
[1748029761566,120.76754807,179.38,179.26,5.13907083]
[1748029761775,120.72890537,179.38,179.28,5.5765]
[1748029761969,112.94,179.38,179.26,5.13907083]